[Event "Polish Youth 1st League 2022"]
[Site "Lublin"]
[Date "2022.06.29"]
[Round "5.7"]
[White "Szlosarczyk, Hubert"]
[Black "Kania, Dominik"]
[Result "1/2-1/2"]
[ECO "A57"]
[WhiteElo "1650"]
[BlackElo "1872"]
[Annotator "NA RC"]
[PlyCount "100"]
[EventDate "2022.06.24"]
[EventType "team-tourn"]
[EventCountry "POL"]
[SourceTitle "playchess.com"]
[Source "ChessBase"]
[SourceQuality "1"]
[TimeControl "40/5400+30:1800+30"]

1. d4 {[%emt 0:00:05]} Nf6 {[%emt 0:01:41]} 2. c4 {[%emt 0:01:03]} c5 {[%emt 0:00:10]} 3. d5 {[%emt 0:01:18]} b5 {[%emt 0:00:10]} 4. cxb5 {[%emt 0:01:17]} a6 {[%emt 0:00:13]} 5. b6 {[%emt 0:01:37]} d6 {[%emt 0:01:22]} 6. Nc3 {[%emt 0:02:40]} Nbd7 {[%emt 0:01:07]} 7. e4 {[%emt 0:01:30]} g6 {[%emt 0:00:27]} 8. Nf3 {[%emt 0:02:53]} Bg7 {[%emt 0:00:58]} 9. h3 {[%emt 0:02:13]} O-O {[%emt 0:00:35]} 10. Bd3 {[%emt 0:02:20]} Nxb6 {[%emt 0:00:42]} 11. O-O {[%emt 0:02:10]} Ne8 {[%emt 0:06:43]} 12. Qe2 {[%emt 0:06:00]} Nc7 {[%emt 0:01:01]} 13. Bg5 {[%emt 0:02:47]} Qd7 {[%emt 0:18:21]} 14. Nd2 {[%emt 0:06:48]} e6 {[%emt 0:06:09]} 15. Nc4 {[%emt 0:04:38]} Nxc4 {[%emt 0:01:01]} 16. Bxc4 {[%emt 0:00:02]} exd5 {[%emt 0:04:59]} 17. Nxd5 {[%emt 0:03:41]} Nxd5 {[%emt 0:04:41]} 18. Bxd5 {[%emt 0:00:48]} Rb8 {[%emt 0:00:43]} 19. Rab1 {[%emt 0:01:21]} Bb7 {[%emt 0:01:32]} 20. Rfd1 {[%emt 0:06:46]} Rfe8 {[%emt 0:04:31]} 21. Bf4 {[%emt 0:10:02]} Bxd5 {[%emt 0:04:53]} 22. Rxd5 {[%emt 0:00:10]} Qa4 {[%emt 0:01:54]} 23. Bxd6 {[%emt 0:08:52]} Qxa2 {[%emt 0:04:03]} 24. Rdd1 {[%emt 0:02:12]} Rxb2 {[%emt 0:05:13]} 25. Rxb2 {[%emt 0:02:29]} Qxb2 {[%emt 0:00:34]} 26. Qxa6 {[%emt 0:02:19]} Bd4 {[%emt 0:02:18]} 27. Rf1 {[%emt 0:00:25]} Qc2 {[%emt 0:04:55]} 28. e5 {[%emt 0:01:51] [#]} Qf5 {[%emt 0:04:32]} ({Don't play} 28... Bxe5 29. Qb5 Kg7 30. Qxe8 $16) ({Better is} 28... Qe4 $1 $17 29. Qb5 Ra8) 29. Qc6 {[%emt 0:02:21]} Qe6 {[%emt 0:04:00]} 30. Qa4 {[%emt 0:07:45]} Rc8 {[%emt 0:03:20]} 31. Kh1 {[%emt 0:02:33]} Bxe5 {[%emt 0:00:53]} 32. Bxe5 {[%emt 0:00:27]} Qxe5 {[%emt 0:00:04]} 33. Rc1 {[%emt 0:01:43]} Qd5 {[%emt 0:01:14]} 34. Qc2 {[%emt 0:04:54]} c4 {[%emt 0:03:31]} 35. Qc3 {[%emt 0:01:05]} Qc5 {[%emt 0:01:42]} 36. Kg1 {[%emt 0:00:26]} Rd8 {[%emt 0:00:43]} 37. g3 $17 {[%emt 0:03:01]} Rd4 {[%emt 0:01:11]} 38. Re1 {[%emt 0:01:15]} Qd5 {[%emt 0:01:54]} 39. Kh2 {[%emt 0:00:49]} h5 {[%emt 0:00:47]} 40. Re2 {[%emt 0:00:00]} (40. Re8+ $1 $15 Kg7 41. h4) 40... Kh7 {[%emt 0:00:00]} 41. Re8 {[%emt 0:03:26]} h4 {[%emt 0:03:35]} 42. gxh4 {[%emt 0:02:44] [#]} Qd6+ $1 {[%emt 0:00:27]} 43. Kg2 {[%emt 0:04:58] [#]} Qc6+ $1 {[%emt 0:01:06]} 44. Kh2 {[%emt 0:00:09]} Qxe8 {[%emt 0:01:11]} 45. Qxd4 {[%emt 0:00:02]} Qb8+ {[%emt 0:01:32]} 46. Kg2 {[%emt 0:00:46]} Qb3 $2 {[%emt 0:00:05]} (46... Qc7 $19 47. Qc3 Qf4) 47. Qd5 {[%emt 0:00:20]} Kg8 {[%emt 0:00:59]} 48. Qd8+ {[%emt 0:00:07]} Kg7 {[%emt 0:00:04]} 49. Qd4+ {[%emt 0:00:04]} f6 {[%emt 0:02:00]} 50. Qd7+ {[%emt 0:00:04]} Kh8 {[%emt 0:02:58]} 1/2-1/2

[Event "Polish Youth 1st League 2022"]
[Site "Lublin"]
[Date "2022.06.29"]
[Round "5.8"]
[White "Lysakowski, Piotr"]
[Black "Kozlowski, Franciszek"]
[Result "1/2-1/2"]
[ECO "D37"]
[WhiteElo "1542"]
[BlackElo "1607"]
[Annotator "NA RC"]
[PlyCount "74"]
[EventDate "2022.06.24"]
[EventType "team-tourn"]
[EventCountry "POL"]
[SourceTitle "playchess.com"]
[Source "ChessBase"]
[SourceQuality "1"]
[TimeControl "40/5400+30:1800+30"]

1. d4 Nf6 2. c4 e6 3. Nc3 d5 4. Nf3 Be7 5. Bg5 Ne4 6. Bxe7 Qxe7 7. cxd5 Nxc3 8. bxc3 exd5 9. e3 O-O 10. Qb3 c6 11. c4 dxc4 12. Bxc4 b5 13. Be2 Be6 14. Qc3 Bd5 15. O-O Nd7 16. Rfc1 a5 17. Nd2 Rfc8 18. e4 Be6 19. Nb3 a4 20. Nd2 Nb6 21. a3 Rab8 22. Rc2 Bb3 23. Nxb3 axb3 24. Qxb3 Qxe4 25. Qd3 Qxd3 26. Bxd3 Kf8 27. Rac1 Rd8 28. Rxc6 b4 29. axb4 Rxd4 30. Bf5 g6 31. Bb1 Nd5 32. Rc8+ Rxc8 33. Rxc8+ Kg7 34. Rc1 Nxb4 35. g3 Rd7 36. Be4 Nd5 37. Bxd5 Rxd5 1/2-1/2

[Event "Polish Youth 1st League 2022"]
[Site "Lublin"]
[Date "2022.06.29"]
[Round "5.9"]
[White "Duda, Szymon"]
[Black "Musial, Igor"]
[Result "0-1"]
[ECO "A48"]
[WhiteElo "1707"]
[BlackElo "1699"]
[Annotator "NA RC"]
[PlyCount "110"]
[EventDate "2022.06.24"]
[EventType "team-tourn"]
[EventCountry "POL"]
[SourceTitle "playchess.com"]
[Source "ChessBase"]
[SourceQuality "1"]
[TimeControl "40/5400+30:1800+30"]

1. d4 {[%emt 0:00:06]} Nf6 {[%emt 0:00:06]} 2. Nf3 {[%emt 0:00:17]} g6 {[%emt 0:00:09]} 3. c4 {[%emt 0:00:09]} Bg7 {[%emt 0:00:04]} 4. g3 {[%emt 0:00:05]} c6 {[%emt 0:00:11]} 5. Bg2 {[%emt 0:00:11]} d5 {[%emt 0:00:09]} 6. Nbd2 {[%emt 0:00:40]} O-O {[%emt 0:00:34]} 7. O-O {[%emt 0:00:08]} Bf5 {[%emt 0:10:34]} 8. b3 {[%emt 0:07:06]} Nbd7 {[%emt 0:22:08]} 9. Bb2 {[%emt 0:01:19]} Qb6 {[%emt 0:05:50]} 10. Ne5 {[%emt 0:05:00]} Nxe5 {[%emt 0:15:08]} 11. dxe5 {[%emt 0:00:16]} Ng4 {[%emt 0:03:10]} 12. cxd5 {[%emt 0:07:23]} cxd5 {[%emt 0:01:01]} 13. Bxd5 {[%emt 0:01:50]} Rad8 {[%emt 0:12:36]} 14. e4 {[%emt 0:18:43]} Nxe5 {[%emt 0:05:52]} 15. Bxe5 {[%emt 0:07:17]} Bxe5 {[%emt 0:00:04]} 16. Nc4 {[%emt 0:00:24]} Qf6 {[%emt 0:01:59]} 17. Nxe5 {[%emt 0:08:51]} Qxe5 {[%emt 0:00:11]} 18. f4 {[%emt 0:01:00]} Qc7 {[%emt 0:08:27]} 19. Qf3 {[%emt 0:12:12]} Bd7 {[%emt 0:03:12]} 20. Rac1 {[%emt 0:04:04]} Qa5 {[%emt 0:01:37]} 21. Qf2 {[%emt 0:10:06]} Bh3 {[%emt 0:05:08]} 22. Rfe1 {[%emt 0:05:28]} e6 {[%emt 0:01:38]} 23. Bc4 {[%emt 0:01:47]} Rd2 {[%emt 0:01:10]} 24. Qf3 {[%emt 0:04:40]} Qxa2 {[%emt 0:00:50]} 25. Be2 {[%emt 0:01:10]} h5 {[%emt 0:00:32]} 26. Qe3 {[%emt 0:00:36]} Rfd8 {[%emt 0:00:35]} 27. Ra1 {[%emt 0:00:29]} Qb2 {[%emt 0:00:20]} 28. f5 {[%emt 0:02:42]} exf5 {[%emt 0:00:36]} 29. exf5 {[%emt 0:00:09]} Bxf5 {[%emt 0:00:22]} 30. h4 {[%emt 0:00:50]} a6 {[%emt 0:00:36]} 31. Rad1 {[%emt 0:00:30]} Rxd1 {[%emt 0:00:26]} 32. Rxd1 {[%emt 0:00:26]} Rxd1+ {[%emt 0:00:11]} 33. Bxd1 {[%emt 0:00:07]} Kg7 {[%emt 0:00:29]} 34. Bf3 {[%emt 0:00:56]} b5 {[%emt 0:00:26]} 35. Bd5 {[%emt 0:00:29]} Qf6 {[%emt 0:00:53]} 36. b4 {[%emt 0:00:33]} Bh3 {[%emt 0:00:36]} 37. Kh2 {[%emt 0:00:26]} Be6 {[%emt 0:00:07]} 38. Bxe6 {[%emt 0:00:32]} Qxe6 {[%emt 0:00:22]} 39. Qd4+ {[%emt 0:00:16]} Qf6 {[%emt 0:00:39]} 40. Qc5 {[%emt 0:00:00]} Qb2+ {[%emt 0:00:00]} 41. Kg1 {[%emt 0:11:17]} Qa1+ {[%emt 0:09:28]} 42. Kh2 {[%emt 0:01:08]} a5 {[%emt 0:01:32]} 43. bxa5 {[%emt 0:00:34]} Qxa5 {[%emt 0:00:06]} 44. Qe5+ {[%emt 0:00:22]} Kh7 {[%emt 0:00:20]} 45. Qd5 {[%emt 0:00:19]} Kg8 {[%emt 0:00:09]} 46. Kg2 {[%emt 0:03:02]} Qa4 {[%emt 0:00:18]} 47. Kh2 {[%emt 0:01:24]} Qc2+ {[%emt 0:00:53]} 48. Kg1 {[%emt 0:00:16]} Qc4 {[%emt 0:00:21]} 49. Qa8+ {[%emt 0:00:14]} Kh7 {[%emt 0:00:07]} 50. Kh2 {[%emt 0:00:18]} b4 {[%emt 0:00:27]} 51. Qd8 {[%emt 0:00:26]} Kg7 {[%emt 0:01:14]} 52. Qd1 {[%emt 0:00:39]} Qc3 {[%emt 0:00:39]} 53. Qa4 {[%emt 0:00:50]} b3 {[%emt 0:01:19]} 54. Qa3 {[%emt 0:00:24]} Qc2+ {[%emt 0:00:11]} 55. Kh3 {[%emt 0:00:09]} b2 {[%emt 0:01:27]} 0-1

[Event "Polish Youth 1st League 2022"]
[Site "Lublin"]
[Date "2022.06.29"]
[Round "5.10"]
[White "Rozek, Michal"]
[Black "Wajda, Krzysztof"]
[Result "1-0"]
[ECO "C50"]
[WhiteElo "1533"]
[BlackElo "1494"]
[Annotator "NA RC"]
[PlyCount "73"]
[EventDate "2022.06.24"]
[EventType "team-tourn"]
[EventCountry "POL"]
[SourceTitle "playchess.com"]
[Source "ChessBase"]
[SourceQuality "1"]
[TimeControl "40/5400+30:1800+30"]

1. e4 {[%emt 0:00:04]} e5 {[%emt 0:00:13]} 2. Nf3 {[%emt 0:00:06]} Nc6 {[%emt 0:00:03]} 3. Bc4 {[%emt 0:00:09]} Bc5 {[%emt 0:00:24]} 4. O-O {[%emt 0:00:09]} d6 {[%emt 0:01:18]} 5. c3 {[%emt 0:03:05]} Nf6 {[%emt 0:02:48]} 6. d3 {[%emt 0:01:39]} h6 {[%emt 0:02:19]} 7. Nbd2 {[%emt 0:04:05]} a5 {[%emt 0:05:15]} 8. Bb3 {[%emt 0:03:30]} O-O {[%emt 0:02:02]} 9. h3 {[%emt 0:02:29]} Be6 {[%emt 0:07:13]} 10. Re1 {[%emt 0:02:53]} Re8 {[%emt 0:05:59]} 11. Bxe6 {[%emt 0:10:24]} fxe6 {[%emt 0:01:28]} 12. Nf1 {[%emt 0:01:33]} Qd7 {[%emt 0:14:22]} 13. Ng3 {[%emt 0:02:27]} Ne7 {[%emt 0:02:30]} 14. d4 {[%emt 0:17:35]} exd4 {[%emt 0:00:42]} 15. cxd4 {[%emt 0:00:10]} Bb6 {[%emt 0:01:41]} 16. Be3 {[%emt 0:03:34]} Ng6 {[%emt 0:04:35]} 17. Qc2 {[%emt 0:03:33]} Qf7 {[%emt 0:03:52]} 18. Rad1 {[%emt 0:03:14]} Rad8 {[%emt 0:03:20]} 19. Qb3 {[%emt 0:12:36]} Rd7 {[%emt 0:14:20]} 20. Nd2 {[%emt 0:03:33]} e5 {[%emt 0:05:22]} 21. Qxf7+ {[%emt 0:03:44]} Kxf7 {[%emt 0:00:24]} 22. d5 {[%emt 0:00:17]} Bxe3 {[%emt 0:02:33]} 23. Rxe3 {[%emt 0:00:07]} Nf4 {[%emt 0:03:08]} 24. Rc1 {[%emt 0:02:52]} h5 {[%emt 0:03:26]} 25. Kf1 {[%emt 0:01:47]} Ke7 {[%emt 0:04:20]} 26. Rec3 {[%emt 0:05:12]} Kd8 {[%emt 0:01:17]} 27. f3 {[%emt 0:04:36]} g5 {[%emt 0:02:29]} 28. Nc4 {[%emt 0:00:48]} b6 {[%emt 0:01:07]} 29. Nf5 {[%emt 0:00:40]} g4 {[%emt 0:01:25]} 30. Nxb6 {[%emt 0:02:23]} Rh7 {[%emt 0:04:11]} 31. Na8 {[%emt 0:01:40]} Rg8 {[%emt 0:01:01]} 32. Nxc7 {[%emt 0:01:02]} gxh3 {[%emt 0:00:38]} 33. gxh3 {[%emt 0:01:52]} Rg5 {[%emt 0:00:33]} 34. Ne6+ {[%emt 0:00:27]} Nxe6 {[%emt 0:00:05]} 35. dxe6 {[%emt 0:00:08]} Rxf5 {[%emt 0:00:59]} 36. exf5 {[%emt 0:00:11]} Ne8 {[%emt 0:00:13]} 37. Rc8+ {[%emt 0:00:23]} 1-0

[Event "Polish Youth 1st League 2022"]
[Site "Lublin"]
[Date "2022.06.29"]
[Round "5.11"]
[White "Czarnecka, Lidia"]
[Black "Mroz, Lena"]
[Result "1-0"]
[ECO "B42"]
[WhiteElo "1940"]
[BlackElo "1719"]
[Annotator "TA"]
[PlyCount "145"]
[EventDate "2022.06.24"]
[EventType "team-tourn"]
[EventCountry "POL"]
[SourceTitle "playchess.com"]
[Source "ChessBase"]
[SourceQuality "1"]
[TimeControl "40/5400+30:1800+30"]

{[%evp 14,145,55,37,43,30,16,27,20,12,27,0,4,-2,23,10,37,16,19,12,19,0,13,6,25,8,31,27,35,31,34,31,28,33,32,25,28,27,60,39,67,0,16,16,30,32,30,25,36,16,17,0,12,0,0,0,3,15,74,55,81,58,88,69,75,68,77,83,79,79,86,60,87,68,73,75,182,164,315,291,372,366,382,376,368,91,327,318,282,283,312,250,240,232,272,272,281,285,290,272,281,274,268,210,305,305,305,305,298,298,418,411,411,411,407,272,653,550,853,816,1200,1190,1191,1135,1803,1735,1846,1833,1738,1669,1485,1163,3941,3277]} 1. e4 {[%emt 0:00:03]} c5 {[%emt 0:00:09]} 2. Nf3 {[%emt 0:01:08]} e6 {[%emt 0:00:06]} 3. d4 {[%emt 0:00:18]} cxd4 {[%emt 0:00:06]} 4. Nxd4 {[%emt 0:00:05]} a6 {[%emt 0:00:07]} 5. Bd3 {[%emt 0:00:23]} Bc5 {[%emt 0:00:08]} 6. Nb3 {[%emt 0:00:13]} Ba7 {[%emt 0:00:10]} 7. O-O {[%emt 0:04:37]} Nc6 {[%emt 0:00:58]} 8. c4 {[%emt 0:02:26]} (8. Qg4 $5 {[%cal Rg4g7]} Kf8 9. Qg3 $14) 8... Nge7 {[%emt 0:03:39] was the old line (8...Nf6). B42: Sicilian: Kan Variation: 5 Bd3.} 9. Nc3 {[%emt 0:01:20]} O-O {[%emt 0:01:13]} 10. Bf4 {[%emt 0:02:29]} e5 {[%emt 0:04:43] White has an edge.} 11. Bg5 {[%emt 0:05:46]} d6 {[%emt 0:04:22] [#]} 12. Nd5 $146 {[%emt 0:01:07]} ({Predecessor:} 12. a3 f6 13. Bd2 Be6 14. Rc1 Rc8 15. Na1 Nd4 16. Nd5 Qd7 17. Be3 Nxd5 18. exd5 Bg4 19. Qd2 Nf3+ 20. gxf3 Bxf3 21. Bxh7+ Kh8 {0-1 (21) Thibaud,C (2005)-Denis,L (2243) Sautron 2004}) 12... f6 {[%emt 0:09:46]} 13. Be3 {[%emt 0:01:03]} Be6 {[%emt 0:04:46]} 14. Qd2 {[%emt 0:07:04]} Kh8 {[%emt 0:06:33]} 15. Rad1 {[%emt 0:01:48]} Bxe3 {[%emt 0:02:03]} 16. Nxe3 {[%emt 0:01:29]} Qb8 {[%emt 0:02:30]} 17. Qe2 {[%emt 0:11:19]} Rd8 {[%emt 0:07:51]} 18. Nd5 {[%emt 0:03:20]} a5 {[%emt 0:05:21]} 19. Qd2 {[%emt 0:14:17]} Ng6 {[%emt 0:12:55]} 20. Nc1 {[%emt 0:05:44][%cal Bb3c1,Bc1e2,Be2c3][%mdl 32]} Bf7 {[%emt 0:04:25]} 21. Ne2 {[%emt 0:02:41]} Nf8 {[%emt 0:02:16][%cal Bg6f8,Bf8e6,Be6c5][%mdl 32]} 22. Nec3 {[%emt 0:07:14]} Nd4 {[%emt 0:03:05]} 23. Qe3 {[%emt 0:01:22]} Nfe6 {[%emt 0:04:58]} 24. Rfe1 {[%emt 0:01:53]} Qa7 {[%emt 0:07:52]} 25. b3 {[%emt 0:01:35]} Nc5 {[%emt 0:03:22]} 26. Bb1 {[%emt 0:00:10]} (26. Nc7 $5 {[%cal Rc7a8]}) 26... Rac8 {[%emt 0:00:40]} 27. Qd2 {[%emt 0:01:45]} ({White has to play} 27. Rxd4 $14 exd4 28. Qxd4) 27... Bh5 {[%emt 0:01:56]} 28. Rc1 {[%emt 0:00:42]} Qa6 {[%emt 0:04:24]} 29. Bd3 {[%emt 0:02:57]} Bf7 {[%emt 0:01:19]} 30. Bf1 {[%emt 0:00:16]} b6 {[%emt 0:01:00]} 31. Re3 {[%emt 0:00:33]} Qb7 {[%emt 0:00:32]} 32. Rce1 {[%emt 0:00:33][%cal Bc1e1,Be1e3,Be3h3][%mdl 32]} Rb8 {[%emt 0:00:38]} 33. Rg3 {[%emt 0:01:02][%cal Od5f6]} Be6 {[%emt 0:00:46]} 34. f4 {[%emt 0:00:52]} Bg8 {[%emt 0:01:02]} 35. f5 {[%emt 0:00:20]} Qf7 {[%emt 0:00:51]} (35... Rdc8 $11 {remains equal.}) 36. Qf2 {[%emt 0:01:32]} Rb7 {[%emt 0:00:46]} 37. Ree3 {[%emt 0:01:31]} Rbb8 {[%emt 0:00:35]} 38. Rh3 {[%emt 0:00:31]} Rb7 {[%emt 0:00:52]} 39. Rh4 {[%emt 0:01:57]} Qf8 {[%emt 0:00:23]} 40. Reh3 {[%emt 0:00:00][%cal Od5f4]} h6 {[%emt 0:00:00]} 41. Qd2 {[%emt 0:09:41]} Bh7 {[%emt 0:07:48]} 42. Kh1 {[%emt 0:02:58]} Rdd7 {[%emt 0:01:53]} 43. g4 {[%emt 0:00:48][%cal Bg2g4,Bg4g5][%mdl 32]} Kg8 {[%emt 0:06:31]} 44. Rg3 {[%emt 0:03:20]} Rf7 {[%emt 0:04:20]} (44... Kh8 $16 {was called for.}) 45. Rh5 $18 {[%emt 0:01:25]} Nc6 $2 {[%emt 0:02:03]} (45... Qe8 46. Bg2 Kh8) 46. h4 {[%emt 0:00:57]} Nb4 {[%emt 0:01:30]} 47. g5 {[%emt 0:02:52]} Nxd5 48. Qxd5 {[%emt 0:00:31]} ({Stronger than} 48. cxd5 fxg5 49. hxg5 Nxe4 50. Nxe4 Rxf5 $17) 48... Kh8 {[%emt 0:09:35]} 49. Qd2 {[%emt 0:04:02]} (49. g6 $18) 49... Rfd7 $2 {[%emt 0:01:32] A mistake that costs the game.} (49... fxg5 $16 50. hxg5 {[#]} Nxe4 $1 51. Nxe4 Rxf5) 50. Be2 {[%emt 0:04:34]} Bg8 {[%emt 0:00:27]} 51. gxh6 {[%emt 0:00:22]} gxh6 {[%emt 0:00:36]} 52. Rxh6+ {[%emt 0:01:57]} Rh7 {[%emt 0:00:11]} 53. Rgg6 {[%emt 0:02:19]} Rxh6 {[%emt 0:00:49]} 54. Qxh6+ {[%emt 0:00:22]} ({Much less strong is} 54. Rxh6+ $6 Rh7 55. Rxh7+ Kxh7 $18) 54... Qxh6 {[%emt 0:00:11]} 55. Rxh6+ {[%emt 0:00:04]} Rh7 {[%emt 0:00:47]} 56. Rxh7+ {[%emt 0:00:07]} (56. Rxf6 Rxh4+ 57. Kg2 Nxe4 58. Nxe4 Rxe4 $14) 56... Kxh7 {[%emt 0:00:08][%mdl 4096] Endgame KBN-KBN} 57. Bf3 {[%emt 0:02:49]} Kg7 {[%emt 0:00:37]} 58. Nb5 {[%emt 0:00:24]} Nb7 {[%emt 0:00:24]} (58... a4 {was necessary.} 59. Kg2 (59. Nxd6 Nxb3 60. Bd1 Nd2 $16) 59... Kf8 60. Nxd6 Nxb3) 59. Na7 {[%emt 0:01:20]} a4 {[%emt 0:00:57]} 60. Bd1 {[%emt 0:01:06]} axb3 {[%emt 0:00:18]} 61. axb3 {[%emt 0:00:07]} Nc5 {[%emt 0:00:42]} (61... d5 {is a better defense.}) 62. Bc2 {[%emt 0:00:07]} Bf7 {[%emt 0:00:27]} 63. Nc8 {[%emt 0:00:23]} Bh5 {[%emt 0:00:33]} 64. Kg2 {[%emt 0:00:02] Threatens to win with b4.} Nb7 $2 {[%emt 0:00:22]} (64... Na6 65. Nxd6 Nb4) 65. Nxb6 {[%emt 0:00:09] [#] And now b4 would win. White is clearly winning.} Be8 {[%emt 0:00:30]} 66. b4 {[%emt 0:00:43]} Kf8 {[%emt 0:00:37]} 67. Kf3 {[%emt 0:00:21]} Bh5+ {[%emt 0:00:18]} 68. Ke3 {[%emt 0:00:07]} Ke7 {[%emt 0:00:38]} 69. Ba4 {[%emt 0:00:20]} Bf7 {[%emt 0:00:33]} 70. Bc6 {[%emt 0:01:39]} Nd8 {[%emt 0:00:11]} 71. Ba8 {[%emt 0:00:20]} Be8 {[%emt 0:00:31]} 72. b5 {[%emt 0:00:15]} Kf7 {[%emt 0:00:50]} 73. Nc8 {[%emt 0:00:18] Weighted Error Value: White=0.19 (very precise) /Black=0.26 (precise)} 1-0

[Event "Polish Youth 1st League 2022"]
[Site "Lublin"]
[Date "2022.06.29"]
[Round "5.12"]
[White "Lajdamik, Kinga"]
[Black "Slusarczyk, Anna"]
[Result "0-1"]
[ECO "B42"]
[WhiteElo "1308"]
[BlackElo "1544"]
[Annotator "NA RC"]
[PlyCount "104"]
[EventDate "2022.06.24"]
[EventType "team-tourn"]
[EventCountry "POL"]
[SourceTitle "playchess.com"]
[Source "ChessBase"]
[SourceQuality "1"]
[TimeControl "40/5400+30:1800+30"]

1. e4 {[%emt 0:00:01]} c5 {[%emt 0:00:07]} 2. Nf3 {[%emt 0:00:04]} e6 {[%emt 0:00:04]} 3. d4 {[%emt 0:00:05]} cxd4 {[%emt 0:00:04]} 4. Nxd4 {[%emt 0:00:07]} a6 {[%emt 0:00:03]} 5. Bd3 {[%emt 0:00:09]} Nf6 {[%emt 0:00:12]} 6. Nc3 {[%emt 0:00:12]} Qc7 {[%emt 0:00:05]} 7. O-O {[%emt 0:00:12]} Be7 {[%emt 0:01:00]} 8. Qe2 {[%emt 0:01:48]} d6 {[%emt 0:00:10]} 9. f4 {[%emt 0:02:21]} Nbd7 {[%emt 0:02:54]} 10. Kh1 {[%emt 0:01:41]} b5 {[%emt 0:06:32]} 11. Bd2 {[%emt 0:03:00]} Bb7 {[%emt 0:02:30]} 12. b4 {[%emt 0:07:15]} Nb6 {[%emt 0:20:17]} 13. a4 {[%emt 0:07:14]} bxa4 {[%emt 0:00:16]} 14. Nxa4 {[%emt 0:00:11]} O-O {[%emt 0:01:53]} 15. Nxb6 {[%emt 0:11:44]} Qxb6 {[%emt 0:01:06]} 16. c3 {[%emt 0:01:30]} a5 {[%emt 0:16:34]} 17. b5 {[%emt 0:00:52]} Rfc8 {[%emt 0:04:44]} 18. Rf3 {[%emt 0:22:46]} g6 {[%emt 0:03:54]} 19. Rg3 {[%emt 0:10:32]} e5 {[%emt 0:03:11]} 20. Nf5 {[%emt 0:03:11]} Bf8 {[%emt 0:04:04]} 21. c4 {[%emt 0:04:05]} exf4 {[%emt 0:08:19]} 22. Bxf4 {[%emt 0:00:23]} Re8 {[%emt 0:00:33]} 23. Be3 {[%emt 0:15:39]} Qc7 {[%emt 0:02:15]} 24. Nh6+ {[%emt 0:03:42]} Bxh6 {[%emt 0:03:52]} 25. Bxh6 {[%emt 0:00:03]} Nxe4 {[%emt 0:01:46]} 26. Bxe4 {[%emt 0:00:37]} Rxe4 {[%emt 0:00:39]} 27. Qb2 {[%emt 0:00:56]} f5 {[%emt 0:00:28]} 28. Rc1 {[%emt 0:01:35]} Qe7 {[%emt 0:04:54]} 29. h3 {[%emt 0:01:55]} Rc8 {[%emt 0:01:17]} 30. Kh2 {[%emt 0:01:04]} Rcxc4 {[%emt 0:00:48]} 31. Rxc4 {[%emt 0:00:15]} Rxc4 {[%emt 0:00:04]} 32. Qa2 {[%emt 0:00:22]} Qc7 {[%emt 0:00:33]} 33. Re3 {[%emt 0:00:28]} d5+ {[%emt 0:00:16]} 34. Rg3 {[%emt 0:00:33]} Rc3 {[%emt 0:00:11]} 35. Qf2 {[%emt 0:00:44]} Qxg3+ {[%emt 0:06:00]} 36. Qxg3 {[%emt 0:00:03]} Rxg3 {[%emt 0:00:05]} 37. Kxg3 {[%emt 0:00:02]} d4 {[%emt 0:00:19]} 38. Bd2 {[%emt 0:01:08]} a4 {[%emt 0:00:19]} 39. Bb4 {[%emt 0:00:31]} Kf7 {[%emt 0:00:40]} 40. Kf2 {[%emt 0:00:00]} Ke6 {[%emt 0:00:00]} 41. Ke2 {[%emt 0:13:04]} Bxg2 {[%emt 0:03:07]} 42. b6 {[%emt 0:00:25]} Bb7 {[%emt 0:00:13]} 43. Kd3 {[%emt 0:00:28]} Kd5 {[%emt 0:00:06]} 44. Ba3 {[%emt 0:00:19]} Ba6+ {[%emt 0:00:07]} 45. Kd2 {[%emt 0:00:28]} f4 {[%emt 0:00:29]} 46. Ke1 {[%emt 0:01:28]} f3 {[%emt 0:00:14]} 47. Kf2 {[%emt 0:00:59]} Ke4 {[%emt 0:00:08]} 48. Bc1 {[%emt 0:00:25]} d3 {[%emt 0:00:54]} 49. Ke1 {[%emt 0:00:27]} Kd4 {[%emt 0:00:31]} 50. Bb2+ {[%emt 0:00:31]} Kc4 {[%emt 0:01:06]} 51. Bc1 {[%emt 0:00:34]} Kc3 {[%emt 0:00:31]} 52. h4 {[%emt 0:00:45]} a3 {[%emt 0:00:11]} 0-1